[Event "Titled Tuesday Blitz August 22 Late 2023"]
[White "Ronka, Erik"]
[Black "Sargsyan, Shant"]
[WhiteFideId "505080"]
[BlackFideId "13306766"]
[WhiteElo "2413"]
[BlackElo "2918"]
[Result "0-1"]
[Round "2"]
[TimeControl "180+1"]
[Date "2023.08.22"]
[WhiteClock "0:00:08"]
[BlackClock "0:01:34"]
[Board "121"]

1. e4 {[%clk 0:03:00]}  g6 {[%clk 0:02:59]} 2. d4 {[%clk 0:03:00]}  Bg7 {[%clk 0:02:57]} 3. Nf3 {[%clk 0:03:01]}  d6 {[%clk 0:02:57]} 4. Bc4 {[%clk 0:03:01]}  a6 {[%clk 0:02:56]} 5. Qe2 {[%clk 0:03:01]}  b5 {[%clk 0:02:50]} 6. Bb3 {[%clk 0:03:01]}  e6 {[%clk 0:02:48]} 7. O-O {[%clk 0:03:02]}  Bb7 {[%clk 0:02:48]} 8. a4 {[%clk 0:03:03]}  b4 {[%clk 0:02:47]} 9. c3 {[%clk 0:03:03]}  bxc3 {[%clk 0:02:44]} 10. Nxc3 {[%clk 0:03:04]}  Nd7 {[%clk 0:02:42]} 11. Bg5 {[%clk 0:02:39]}  Ne7 {[%clk 0:02:42]} 12. Rad1 {[%clk 0:02:39]}  h6 {[%clk 0:02:42]} 13. Be3 {[%clk 0:02:38]}  O-O {[%clk 0:02:42]} 14. h4 {[%clk 0:02:38]}  Rb8 {[%clk 0:02:39]} 15. Bc2 {[%clk 0:02:37]}  a5 {[%clk 0:02:36]} 16. Rfe1 {[%clk 0:02:35]}  Nf6 {[%clk 0:02:34]} 17. Bf4 {[%clk 0:02:29]}  Nc6 {[%clk 0:02:28]} 18. Bh2 {[%clk 0:02:19]}  Nb4 {[%clk 0:02:28]} 19. Bb1 {[%clk 0:02:19]}  Nd7 {[%clk 0:02:26]} 20. Bf4 {[%clk 0:02:13]}  Qe7 {[%clk 0:02:20]} 21. Qd2 {[%clk 0:02:05]}  Kh7 {[%clk 0:02:17]} 22. h5 {[%clk 0:01:57]}  e5 {[%clk 0:02:17]} 23. Be3 {[%clk 0:01:55]}  g5 {[%clk 0:02:12]} 24. dxe5 {[%clk 0:01:33]}  Nxe5 {[%clk 0:02:13]} 25. Nd4 {[%clk 0:01:29]}  Nc4 {[%clk 0:02:06]} 26. Qe2 {[%clk 0:01:04]}  Nxe3 {[%clk 0:02:06]} 27. Qxe3 {[%clk 0:01:05]}  Qe5 {[%clk 0:02:04]} 28. Nf3 {[%clk 0:01:00]}  Qf4 {[%clk 0:01:59]} 29. Qxf4 {[%clk 0:00:54]}  gxf4 {[%clk 0:02:00]} 30. e5+ {[%clk 0:00:55]}  Kh8 {[%clk 0:02:00]} 31. exd6 {[%clk 0:00:56]}  cxd6 {[%clk 0:02:01]} 32. Rxd6 {[%clk 0:00:56]}  Rg8 {[%clk 0:02:01]} 33. Kh2 {[%clk 0:00:51]}  Bxf3 {[%clk 0:01:43]} 34. gxf3 {[%clk 0:00:50]}  Rbc8 {[%clk 0:01:44]} 35. Re7 {[%clk 0:00:31]}  Rc5 {[%clk 0:01:40]} 36. Ne4 {[%clk 0:00:10]}  Rxh5+ {[%clk 0:01:38]} 37. Kg2 {[%clk 0:00:09]}  Bf8+ {[%clk 0:01:35]} 38. Kf1 {[%clk 0:00:08]}  Bxe7 {[%clk 0:01:34]} 0-1


[Site "https://www.chess.com"]

[Event "Titled Tuesday Blitz August 22 Late 2023"]
[White "Kushko, Dmitriy"]
[Black "Romero Ruscalleda, Josep"]
[WhiteFideId "14162261"]
[BlackFideId "2231859"]
[WhiteElo "2753"]
[BlackElo "2404"]
[Result "1-0"]
[Round "2"]
[TimeControl "180+1"]
[Date "2023.08.22"]
[WhiteClock "0:00:20"]
[BlackClock "0:00:06"]
[Board "126"]

1. Nf3 {[%clk 0:03:00]}  g6 {[%clk 0:03:00]} 2. d4 {[%clk 0:03:00]}  Bg7 {[%clk 0:03:01]} 3. e4 {[%clk 0:03:00]}  d6 {[%clk 0:03:01]} 4. Nc3 {[%clk 0:02:58]}  a6 {[%clk 0:03:02]} 5. Be3 {[%clk 0:02:57]}  b5 {[%clk 0:03:02]} 6. h4 {[%clk 0:02:57]}  h5 {[%clk 0:03:00]} 7. Ng5 {[%clk 0:02:55]}  Nf6 {[%clk 0:02:54]} 8. f3 {[%clk 0:02:37]}  Nbd7 {[%clk 0:02:50]} 9. Bd3 {[%clk 0:02:28]}  e5 {[%clk 0:02:50]} 10. d5 {[%clk 0:02:16]}  Nc5 {[%clk 0:02:36]} 11. Bxc5 {[%clk 0:02:06]}  dxc5 {[%clk 0:02:36]} 12. a4 {[%clk 0:02:06]}  b4 {[%clk 0:02:27]} 13. Nb1 {[%clk 0:02:06]}  O-O {[%clk 0:02:24]} 14. Nd2 {[%clk 0:02:05]}  Ne8 {[%clk 0:02:23]} 15. Nb3 {[%clk 0:02:01]}  Qe7 {[%clk 0:02:20]} 16. Qe2 {[%clk 0:02:00]}  Bb7 {[%clk 0:02:13]} 17. Qf2 {[%clk 0:01:59]}  c6 {[%clk 0:02:05]} 18. Qxc5 {[%clk 0:01:58]}  Nd6 {[%clk 0:01:57]} 19. dxc6 {[%clk 0:01:53]}  Rfc8 {[%clk 0:01:52]} 20. Na5 {[%clk 0:01:50]}  Rab8 {[%clk 0:01:29]} 21. Nxb7 {[%clk 0:01:46]}  Rxb7 {[%clk 0:01:29]} 22. cxb7 {[%clk 0:01:44]}  Rxc5 {[%clk 0:01:21]} 23. b8=Q+ {[%clk 0:01:44]}  Bf8 {[%clk 0:01:20]} 24. Qxb4 {[%clk 0:01:42]}  Rc7 {[%clk 0:01:09]} 25. O-O {[%clk 0:01:16]}  Qf6 {[%clk 0:01:07]} 26. Qd2 {[%clk 0:01:14]}  Bh6 {[%clk 0:00:59]} 27. Bxa6 {[%clk 0:01:08]}  Kg7 {[%clk 0:00:36]} 28. a5 {[%clk 0:01:04]}  Qe7 {[%clk 0:00:29]} 29. Bd3 {[%clk 0:01:01]}  f6 {[%clk 0:00:28]} 30. Rfd1 {[%clk 0:00:47]}  fxg5 {[%clk 0:00:26]} 31. Bf1 {[%clk 0:00:46]}  Nf7 {[%clk 0:00:25]} 32. a6 {[%clk 0:00:37]}  gxh4 {[%clk 0:00:24]} 33. Qf2 {[%clk 0:00:37]}  Ra7 {[%clk 0:00:20]} 34. Bc4 {[%clk 0:00:29]}  Ng5 {[%clk 0:00:18]} 35. Ra5 {[%clk 0:00:22]}  h3 {[%clk 0:00:15]} 36. Rxe5 {[%clk 0:00:21]}  h2+ {[%clk 0:00:15]} 37. Kh1 {[%clk 0:00:20]}  Qxe5 {[%clk 0:00:13]} 38. Qxa7+ {[%clk 0:00:20]}  Kf6 {[%clk 0:00:13]} 39. Qb6+ {[%clk 0:00:18]}  Ke7 {[%clk 0:00:13]} 40. Qd6+ {[%clk 0:00:17]}  Qxd6 {[%clk 0:00:12]} 41. Rxd6 {[%clk 0:00:17]}  Kxd6 {[%clk 0:00:12]} 42. a7 {[%clk 0:00:18]}  Nxe4 {[%clk 0:00:10]} 43. fxe4 {[%clk 0:00:17]}  Be3 {[%clk 0:00:09]} 44. a8=Q {[%clk 0:00:18]}  Bg1 {[%clk 0:00:10]} 45. Qd5+ {[%clk 0:00:19]}  Ke7 {[%clk 0:00:09]} 46. e5 {[%clk 0:00:19]}  g5 {[%clk 0:00:09]} 47. Qd6+ {[%clk 0:00:19]}  Ke8 {[%clk 0:00:06]} 48. e6 {[%clk 0:00:20]} 1-0


[Site "https://www.chess.com"]

[Event "Titled Tuesday Blitz August 22 Late 2023"]
[White "Martinez Ramirez, Lennis"]
[Black "Mazibuko, Khanya"]
[WhiteFideId "3509079"]
[BlackFideId "14321041"]
[WhiteElo "2727"]
[BlackElo "2403"]
[Result "1-0"]
[Round "2"]
[TimeControl "180+1"]
[Date "2023.08.22"]
[WhiteClock "0:01:11"]
[BlackClock "0:00:00"]
[Board "127"]

1. Nf3 {[%clk 0:03:00]}  Nf6 {[%clk 0:02:58]} 2. c4 {[%clk 0:03:01]}  c5 {[%clk 0:02:57]} 3. Nc3 {[%clk 0:03:02]}  d5 {[%clk 0:02:56]} 4. cxd5 {[%clk 0:03:01]}  Nxd5 {[%clk 0:02:56]} 5. e4 {[%clk 0:03:02]}  Nc7 {[%clk 0:02:51]} 6. d4 {[%clk 0:02:59]}  cxd4 {[%clk 0:02:41]} 7. Qxd4 {[%clk 0:02:59]}  Qxd4 {[%clk 0:02:38]} 8. Nxd4 {[%clk 0:03:00]}  a6 {[%clk 0:02:36]} 9. Bf4 {[%clk 0:02:54]}  Ne6 {[%clk 0:02:34]} 10. Nxe6 {[%clk 0:02:48]}  Bxe6 {[%clk 0:02:35]} 11. Nd5 {[%clk 0:02:49]}  Bxd5 {[%clk 0:02:32]} 12. exd5 {[%clk 0:02:49]}  Nd7 {[%clk 0:02:21]} 13. Rc1 {[%clk 0:02:50]}  Nf6 {[%clk 0:02:18]} 14. Bc4 {[%clk 0:02:50]}  g6 {[%clk 0:02:14]} 15. Ke2 {[%clk 0:02:49]}  Bg7 {[%clk 0:02:12]} 16. Bb3 {[%clk 0:02:49]}  O-O {[%clk 0:02:07]} 17. Rc7 {[%clk 0:02:48]}  b5 {[%clk 0:01:54]} 18. Rxe7 {[%clk 0:02:45]}  a5 {[%clk 0:01:44]} 19. a3 {[%clk 0:02:43]}  Nh5 {[%clk 0:01:36]} 20. Bc1 {[%clk 0:02:43]}  Rac8 {[%clk 0:01:23]} 21. Kd1 {[%clk 0:02:38]}  a4 {[%clk 0:01:17]} 22. Ba2 {[%clk 0:02:38]}  Rfd8 {[%clk 0:01:07]} 23. Rb7 {[%clk 0:02:34]}  Rc5 {[%clk 0:00:52]} 24. Be3 {[%clk 0:02:32]}  Rcc8 {[%clk 0:00:49]} 25. Rxb5 {[%clk 0:02:32]}  Nf6 {[%clk 0:00:45]} 26. Ke2 {[%clk 0:02:22]}  Ng4 {[%clk 0:00:39]} 27. Rd1 {[%clk 0:02:09]}  Nxh2 {[%clk 0:00:35]} 28. f3 {[%clk 0:02:09]}  Be5 {[%clk 0:00:31]} 29. Rd2 {[%clk 0:02:07]}  Bd6 {[%clk 0:00:29]} 30. Kf2 {[%clk 0:02:06]}  Rc1 {[%clk 0:00:28]} 31. Rb6 {[%clk 0:01:38]}  Nf1 {[%clk 0:00:22]} 32. Bg5 {[%clk 0:01:25]}  Bg3+ {[%clk 0:00:21]} 33. Ke2 {[%clk 0:01:23]}  Re8+ {[%clk 0:00:15]} 34. Kd3 {[%clk 0:01:24]}  Nxd2 {[%clk 0:00:10]} 35. Bxd2 {[%clk 0:01:19]}  Ra1 {[%clk 0:00:09]} 36. Bc4 {[%clk 0:01:18]}  Be1 {[%clk 0:00:07]} 37. Bg5 {[%clk 0:01:13]}  Rd1+ {[%clk 0:00:04]} 38. Kc2 {[%clk 0:01:13]}  Rd4 {[%clk 0:00:04]} 39. Rc6 {[%clk 0:01:11]}  Kg7 {[%clk 0:00:03]} 40. Bf6+ {[%clk 0:01:11]}  Kf8 {[%clk 0:00:00]} 41. Bxd4 {[%clk 0:01:11]} 1-0


[Site "https://www.chess.com"]

[Event "Titled Tuesday Blitz August 22 Late 2023"]
[White "Melikhov, Evgeny V."]
[Black "Korchmar, Vasiliy"]
[WhiteFideId "4122046"]
[BlackFideId "24131750"]
[WhiteElo "2393"]
[BlackElo "2662"]
[Result "0-1"]
[Round "2"]
[TimeControl "180+1"]
[Date "2023.08.22"]
[WhiteClock "0:00:00"]
[BlackClock "0:00:20"]
[Board "134"]

1. d4 {[%clk 0:03:00]}  Nf6 {[%clk 0:03:00]} 2. c4 {[%clk 0:03:00]}  c6 {[%clk 0:03:00]} 3. Nc3 {[%clk 0:03:00]}  d5 {[%clk 0:03:01]} 4. e3 {[%clk 0:03:01]}  e6 {[%clk 0:03:01]} 5. Nf3 {[%clk 0:03:01]}  Nbd7 {[%clk 0:03:02]} 6. Bd3 {[%clk 0:03:00]}  dxc4 {[%clk 0:03:00]} 7. Bxc4 {[%clk 0:03:01]}  b5 {[%clk 0:03:00]} 8. Bd3 {[%clk 0:03:00]}  b4 {[%clk 0:03:01]} 9. Ne4 {[%clk 0:03:00]}  Nxe4 {[%clk 0:03:02]} 10. Bxe4 {[%clk 0:03:01]}  Bb7 {[%clk 0:03:03]} 11. Nd2 {[%clk 0:02:58]}  Be7 {[%clk 0:03:04]} 12. O-O {[%clk 0:02:47]}  O-O {[%clk 0:03:04]} 13. Nc4 {[%clk 0:02:40]}  Nf6 {[%clk 0:03:03]} 14. Bf3 {[%clk 0:02:39]}  Rc8 {[%clk 0:03:02]} 15. Qa4 {[%clk 0:02:24]}  Qc7 {[%clk 0:02:53]} 16. Bd2 {[%clk 0:02:21]}  c5 {[%clk 0:02:51]} 17. Bxb7 {[%clk 0:02:16]}  Qxb7 {[%clk 0:02:52]} 18. Rfc1 {[%clk 0:02:04]}  Ne4 {[%clk 0:02:32]} 19. Be1 {[%clk 0:02:04]}  cxd4 {[%clk 0:02:31]} 20. exd4 {[%clk 0:02:01]}  Bf6 {[%clk 0:02:29]} 21. Qxb4 {[%clk 0:01:52]}  Qd5 {[%clk 0:02:28]} 22. Ne3 {[%clk 0:01:47]}  Qxd4 {[%clk 0:02:26]} 23. Qxd4 {[%clk 0:01:47]}  Bxd4 {[%clk 0:02:27]} 24. Rxc8 {[%clk 0:01:41]}  Rxc8 {[%clk 0:02:28]} 25. Rb1 {[%clk 0:01:40]}  f5 {[%clk 0:02:26]} 26. b4 {[%clk 0:01:37]}  f4 {[%clk 0:02:23]} 27. Nd1 {[%clk 0:01:36]}  Rc2 {[%clk 0:02:23]} 28. a4 {[%clk 0:01:32]}  g5 {[%clk 0:02:23]} 29. b5 {[%clk 0:01:25]}  g4 {[%clk 0:02:23]} 30. Kf1 {[%clk 0:01:15]}  Ra2 {[%clk 0:02:06]} 31. a5 {[%clk 0:01:14]}  Nd6 {[%clk 0:01:32]} 32. b6 {[%clk 0:01:14]}  axb6 {[%clk 0:01:33]} 33. axb6 {[%clk 0:01:15]}  Nb7 {[%clk 0:01:34]} 34. Bc3 {[%clk 0:01:08]}  Bc5 {[%clk 0:01:29]} 35. Nb2 {[%clk 0:00:43]}  Ra3 {[%clk 0:00:52]} 36. Be5 {[%clk 0:00:18]}  Rb3 {[%clk 0:00:52]} 37. Rc1 {[%clk 0:00:16]}  Bxb6 {[%clk 0:00:45]} 38. Nc4 {[%clk 0:00:14]}  f3 {[%clk 0:00:41]} 39. Nxb6 {[%clk 0:00:13]}  Rxb6 {[%clk 0:00:41]} 40. gxf3 {[%clk 0:00:12]}  gxf3 {[%clk 0:00:41]} 41. Ke1 {[%clk 0:00:09]}  Rb5 {[%clk 0:00:36]} 42. Bf4 {[%clk 0:00:06]}  Nc5 {[%clk 0:00:35]} 43. Rc3 {[%clk 0:00:05]}  Rb1+ {[%clk 0:00:34]} 44. Kd2 {[%clk 0:00:04]}  Ne4+ {[%clk 0:00:34]} 45. Kc2 {[%clk 0:00:03]}  Nxc3 {[%clk 0:00:35]} 46. Kxc3 {[%clk 0:00:03]}  Rd1 {[%clk 0:00:30]} 47. Bd2 {[%clk 0:00:02]}  e5 {[%clk 0:00:27]} 48. Kd3 {[%clk 0:00:02]}  Rh1 {[%clk 0:00:27]} 49. Ke3 {[%clk 0:00:02]}  Rxh2 {[%clk 0:00:27]} 50. Kxf3 {[%clk 0:00:03]}  Kf7 {[%clk 0:00:26]} 51. Kg3 {[%clk 0:00:02]}  Rh1 {[%clk 0:00:25]} 52. f4 {[%clk 0:00:02]}  e4 {[%clk 0:00:21]} 53. Kg2 {[%clk 0:00:02]}  Rb1 {[%clk 0:00:19]} 54. Kf2 {[%clk 0:00:02]}  Ke6 {[%clk 0:00:19]} 55. Ke3 {[%clk 0:00:00]}  Kf5 {[%clk 0:00:20]} 0-1


[Site "https://www.chess.com"]

[Event "Titled Tuesday Blitz August 22 Late 2023"]
[White "Ozdemir, Serhan Berat"]
[Black "Arnold, Ken"]
[WhiteFideId "6374611"]
[BlackFideId "2056836"]
[WhiteElo "2659"]
[BlackElo "2390"]
[Result "0-1"]
[Round "2"]
[TimeControl "180+1"]
[Date "2023.08.22"]
[WhiteClock "0:00:00"]
[BlackClock "0:01:18"]
[Board "135"]

1. e4 {[%clk 0:03:00]}  c6 {[%clk 0:02:59]} 2. d4 {[%clk 0:03:00]}  d5 {[%clk 0:03:00]} 3. exd5 {[%clk 0:03:01]}  cxd5 {[%clk 0:03:00]} 4. c4 {[%clk 0:03:02]}  Nf6 {[%clk 0:03:00]} 5. Nc3 {[%clk 0:03:02]}  Nc6 {[%clk 0:03:00]} 6. Bg5 {[%clk 0:03:03]}  e6 {[%clk 0:03:00]} 7. Nf3 {[%clk 0:03:02]}  Be7 {[%clk 0:03:00]} 8. Be2 {[%clk 0:03:01]}  O-O {[%clk 0:02:58]} 9. O-O {[%clk 0:02:52]}  dxc4 {[%clk 0:02:57]} 10. Bxc4 {[%clk 0:02:53]}  a6 {[%clk 0:02:57]} 11. Bb3 {[%clk 0:02:40]}  b5 {[%clk 0:02:47]} 12. Qe2 {[%clk 0:02:29]}  Bb7 {[%clk 0:02:37]} 13. Rad1 {[%clk 0:02:25]}  Nb4 {[%clk 0:02:32]} 14. Ne5 {[%clk 0:02:21]}  Nfd5 {[%clk 0:02:24]} 15. Bd2 {[%clk 0:02:04]}  Bf6 {[%clk 0:02:18]} 16. Ne4 {[%clk 0:02:01]}  a5 {[%clk 0:01:51]} 17. a3 {[%clk 0:01:27]}  a4 {[%clk 0:01:45]} 18. Nc5 {[%clk 0:01:07]}  Bc8 {[%clk 0:01:35]} 19. Bxd5 {[%clk 0:00:49]}  Nxd5 {[%clk 0:01:30]} 20. Qxb5 {[%clk 0:00:29]}  Bxe5 {[%clk 0:01:29]} 21. dxe5 {[%clk 0:00:29]}  Qc7 {[%clk 0:01:26]} 22. Nxa4 {[%clk 0:00:00]}  Bd7 {[%clk 0:01:18]} 0-1


[Site "https://www.chess.com"]

[Event "Titled Tuesday Blitz August 22 Late 2023"]
[White "Karas, Marek"]
[Black "Karttunen, Mika"]
[WhiteFideId "14928558"]
[BlackFideId "502081"]
[WhiteElo "2389"]
[BlackElo "2646"]
[Result "1-0"]
[Round "2"]
[TimeControl "180+1"]
[Date "2023.08.22"]
[WhiteClock "0:00:20"]
[BlackClock "0:00:17"]
[Board "137"]

1. d4 {[%clk 0:03:00]}  Nf6 {[%clk 0:02:59]} 2. Nf3 {[%clk 0:03:00]}  g6 {[%clk 0:02:58]} 3. Nc3 {[%clk 0:02:59]}  d5 {[%clk 0:02:58]} 4. Bf4 {[%clk 0:02:58]}  Bg7 {[%clk 0:02:56]} 5. Nb5 {[%clk 0:02:58]}  Na6 {[%clk 0:02:55]} 6. e3 {[%clk 0:02:55]}  O-O {[%clk 0:02:55]} 7. h3 {[%clk 0:02:56]}  c6 {[%clk 0:02:46]} 8. Nc3 {[%clk 0:02:55]}  c5 {[%clk 0:02:46]} 9. Bxa6 {[%clk 0:02:47]}  bxa6 {[%clk 0:02:46]} 10. dxc5 {[%clk 0:02:48]}  Bb7 {[%clk 0:02:35]} 11. O-O {[%clk 0:02:42]}  Qa5 {[%clk 0:02:27]} 12. Be5 {[%clk 0:02:34]}  Qxc5 {[%clk 0:02:25]} 13. Qd4 {[%clk 0:02:26]}  Qc6 {[%clk 0:02:17]} 14. Qa4 {[%clk 0:02:21]}  e6 {[%clk 0:02:05]} 15. Qxc6 {[%clk 0:02:09]}  Bxc6 {[%clk 0:02:05]} 16. Nd4 {[%clk 0:02:10]}  Bb7 {[%clk 0:02:00]} 17. f4 {[%clk 0:01:57]}  Rfc8 {[%clk 0:01:59]} 18. Rfc1 {[%clk 0:01:55]}  Rc4 {[%clk 0:01:52]} 19. Nde2 {[%clk 0:01:48]}  Rac8 {[%clk 0:01:47]} 20. Kf1 {[%clk 0:01:43]}  Nd7 {[%clk 0:01:43]} 21. Bxg7 {[%clk 0:01:42]}  Kxg7 {[%clk 0:01:43]} 22. Nd4 {[%clk 0:01:31]}  h5 {[%clk 0:01:18]} 23. Nce2 {[%clk 0:01:25]}  Nf6 {[%clk 0:01:15]} 24. g3 {[%clk 0:01:17]}  Ne4 {[%clk 0:01:15]} 25. Kg2 {[%clk 0:01:16]}  Kf8 {[%clk 0:01:14]} 26. c3 {[%clk 0:01:15]}  Ke7 {[%clk 0:01:13]} 27. g4 {[%clk 0:01:15]}  Rh8 {[%clk 0:01:10]} 28. g5 {[%clk 0:01:13]}  h4 {[%clk 0:01:07]} 29. Nf3 {[%clk 0:01:09]}  Rc7 {[%clk 0:00:46]} 30. Ned4 {[%clk 0:00:59]}  Nd6 {[%clk 0:00:44]} 31. Ne5 {[%clk 0:00:58]}  Ne4 {[%clk 0:00:39]} 32. Rd1 {[%clk 0:00:56]}  Ba8 {[%clk 0:00:37]} 33. Rac1 {[%clk 0:00:53]}  Rb8 {[%clk 0:00:36]} 34. Rc2 {[%clk 0:00:52]}  a5 {[%clk 0:00:37]} 35. Kh2 {[%clk 0:00:49]}  a4 {[%clk 0:00:37]} 36. Rdc1 {[%clk 0:00:44]}  Rb6 {[%clk 0:00:37]} 37. c4 {[%clk 0:00:38]}  dxc4 {[%clk 0:00:36]} 38. Nxc4 {[%clk 0:00:39]}  Rb8 {[%clk 0:00:32]} 39. Ne5 {[%clk 0:00:37]}  Rxc2+ {[%clk 0:00:30]} 40. Rxc2 {[%clk 0:00:38]}  Rb7 {[%clk 0:00:27]} 41. b3 {[%clk 0:00:31]}  axb3 {[%clk 0:00:27]} 42. axb3 {[%clk 0:00:32]}  a6 {[%clk 0:00:26]} 43. Rc8 {[%clk 0:00:30]}  Ra7 {[%clk 0:00:22]} 44. Ndc6+ {[%clk 0:00:28]}  Bxc6 {[%clk 0:00:22]} 45. Nxc6+ {[%clk 0:00:29]}  Kd7 {[%clk 0:00:22]} 46. Nxa7 {[%clk 0:00:29]}  Nd2 {[%clk 0:00:22]} 47. Rf8 {[%clk 0:00:27]}  Nf1+ {[%clk 0:00:22]} 48. Kg1 {[%clk 0:00:26]}  Nxe3 {[%clk 0:00:23]} 49. Rxf7+ {[%clk 0:00:26]}  Kd6 {[%clk 0:00:23]} 50. Nc8+ {[%clk 0:00:25]}  Kd5 {[%clk 0:00:23]} 51. Rf6 {[%clk 0:00:23]}  Nc2 {[%clk 0:00:19]} 52. Rxg6 {[%clk 0:00:22]}  Nd4 {[%clk 0:00:19]} 53. Rf6 {[%clk 0:00:20]}  Nxb3 {[%clk 0:00:17]} 54. g6 {[%clk 0:00:20]} 1-0


[Site "https://www.chess.com"]

[Event "Titled Tuesday Blitz August 22 Late 2023"]
[White "Ozalp, Burak"]
[Black "Hilary46"]
[WhiteFideId "6314210"]
[WhiteElo "2388"]
[BlackElo "2607"]
[Result "0-1"]
[Round "2"]
[TimeControl "180+1"]
[Date "2023.08.22"]
[WhiteClock "0:00:31"]
[BlackClock "0:01:10"]
[Board "139"]

1. e4 {[%clk 0:03:00]}  e5 {[%clk 0:02:57]} 2. Nc3 {[%clk 0:03:00]}  Nf6 {[%clk 0:02:57]} 3. g3 {[%clk 0:03:00]}  d5 {[%clk 0:02:56]} 4. exd5 {[%clk 0:03:01]}  Nxd5 {[%clk 0:02:57]} 5. Bg2 {[%clk 0:03:02]}  Nxc3 {[%clk 0:02:57]} 6. bxc3 {[%clk 0:03:03]}  Bd6 {[%clk 0:02:55]} 7. Nf3 {[%clk 0:03:02]}  O-O {[%clk 0:02:52]} 8. d3 {[%clk 0:03:00]}  f5 {[%clk 0:02:50]} 9. O-O {[%clk 0:02:57]}  Nc6 {[%clk 0:02:47]} 10. Rb1 {[%clk 0:02:55]}  f4 {[%clk 0:02:43]} 11. Nd2 {[%clk 0:02:45]}  Bc5 {[%clk 0:02:37]} 12. Ne4 {[%clk 0:02:42]}  Bb6 {[%clk 0:02:37]} 13. Ba3 {[%clk 0:02:36]}  Rf7 {[%clk 0:02:24]} 14. Qh5 {[%clk 0:02:30]}  Bf5 {[%clk 0:02:15]} 15. Ng5 {[%clk 0:02:25]}  Bg6 {[%clk 0:02:12]} 16. Qh4 {[%clk 0:02:20]}  Rf5 {[%clk 0:02:10]} 17. Nf3 {[%clk 0:02:11]}  Qd5 {[%clk 0:01:58]} 18. Nd4 {[%clk 0:01:56]}  f3 {[%clk 0:01:58]} 19. Nxf3 {[%clk 0:01:27]}  Rxf3 {[%clk 0:01:56]} 20. c4 {[%clk 0:01:27]}  Qf7 {[%clk 0:01:52]} 21. Bxf3 {[%clk 0:01:19]}  Qxf3 {[%clk 0:01:53]} 22. c5 {[%clk 0:01:20]}  Nd4 {[%clk 0:01:41]} 23. Rfe1 {[%clk 0:01:14]}  Ba5 {[%clk 0:01:41]} 24. Rxe5 {[%clk 0:01:06]}  Ne2+ {[%clk 0:01:33]} 25. Kf1 {[%clk 0:01:04]}  Nc3 {[%clk 0:01:32]} 26. Qc4+ {[%clk 0:01:02]}  Kh8 {[%clk 0:01:31]} 27. Kg1 {[%clk 0:00:47]}  Nxb1 {[%clk 0:01:30]} 28. c6 {[%clk 0:00:46]}  Bb6 {[%clk 0:01:27]} 29. d4 {[%clk 0:00:44]}  Qxc6 {[%clk 0:01:17]} 30. Qe2 {[%clk 0:00:39]}  Nxa3 {[%clk 0:01:14]} 31. h4 {[%clk 0:00:36]}  Qxc2 {[%clk 0:01:13]} 32. Qe3 {[%clk 0:00:31]}  Nc4 {[%clk 0:01:10]} 0-1


[Site "https://www.chess.com"]

[Event "Titled Tuesday Blitz August 22 Late 2023"]
[White "Ramadoss, Ashokkumar"]
[Black "Proleiko, Julian"]
[WhiteFideId "5040990"]
[BlackFideId "30900255"]
[WhiteElo "2387"]
[BlackElo "2604"]
[Result "1/2-1/2"]
[Round "2"]
[TimeControl "180+1"]
[Date "2023.08.22"]
[WhiteClock "0:00:12"]
[BlackClock "0:00:33"]
[Board "140"]

1. Nf3 {[%clk 0:03:00]}  d5 {[%clk 0:02:59]} 2. c4 {[%clk 0:03:01]}  d4 {[%clk 0:02:59]} 3. b4 {[%clk 0:03:00]}  g5 {[%clk 0:02:57]} 4. d3 {[%clk 0:02:58]}  g4 {[%clk 0:02:56]} 5. Nfd2 {[%clk 0:02:58]}  e5 {[%clk 0:02:56]} 6. b5 {[%clk 0:02:55]}  Bg7 {[%clk 0:02:50]} 7. a4 {[%clk 0:02:56]}  Ne7 {[%clk 0:02:50]} 8. Ba3 {[%clk 0:02:50]}  O-O {[%clk 0:02:46]} 9. g3 {[%clk 0:02:50]}  Re8 {[%clk 0:02:45]} 10. h3 {[%clk 0:02:46]}  Ng6 {[%clk 0:02:39]} 11. Bg2 {[%clk 0:02:21]}  gxh3 {[%clk 0:02:37]} 12. Bxh3 {[%clk 0:02:22]}  Bxh3 {[%clk 0:02:37]} 13. Rxh3 {[%clk 0:02:23]}  Qd7 {[%clk 0:02:31]} 14. Rh2 {[%clk 0:02:22]}  Qf5 {[%clk 0:02:16]} 15. Ne4 {[%clk 0:02:16]}  Nd7 {[%clk 0:02:15]} 16. Nbd2 {[%clk 0:02:16]}  a6 {[%clk 0:02:11]} 17. Qb3 {[%clk 0:02:02]}  axb5 {[%clk 0:02:11]} 18. cxb5 {[%clk 0:02:01]}  Nf6 {[%clk 0:02:08]} 19. Nxf6+ {[%clk 0:01:57]}  Qxf6 {[%clk 0:02:07]} 20. Ne4 {[%clk 0:01:58]}  Qd8 {[%clk 0:02:00]} 21. Kf1 {[%clk 0:01:45]}  Re6 {[%clk 0:01:58]} 22. Kg2 {[%clk 0:01:42]}  c6 {[%clk 0:01:58]} 23. Rah1 {[%clk 0:01:41]}  h6 {[%clk 0:01:57]} 24. Nc5 {[%clk 0:01:34]}  Re7 {[%clk 0:01:53]} 25. Bc1 {[%clk 0:01:20]}  Qd5+ {[%clk 0:01:45]} 26. Qxd5 {[%clk 0:01:19]}  cxd5 {[%clk 0:01:45]} 27. Bxh6 {[%clk 0:01:18]}  Bxh6 {[%clk 0:01:34]} 28. Rxh6 {[%clk 0:01:17]}  Rc7 {[%clk 0:01:34]} 29. Ne6 {[%clk 0:01:11]}  Rc2 {[%clk 0:01:29]} 30. Ng5 {[%clk 0:01:10]}  Rxe2 {[%clk 0:01:20]} 31. Nf3 {[%clk 0:00:34]}  Rxa4 {[%clk 0:01:15]} 32. Nh4 {[%clk 0:00:28]}  Raa2 {[%clk 0:01:11]} 33. Nxg6 {[%clk 0:00:29]}  Rxf2+ {[%clk 0:01:11]} 34. Kh3 {[%clk 0:00:30]}  Kg7 {[%clk 0:01:03]} 35. Kg4 {[%clk 0:00:25]}  fxg6 {[%clk 0:00:52]} 36. Rh7+ {[%clk 0:00:25]}  Kf6 {[%clk 0:00:52]} 37. Rxb7 {[%clk 0:00:25]}  e4 {[%clk 0:00:50]} 38. Rhh7 {[%clk 0:00:21]}  Ke6 {[%clk 0:00:41]} 39. Rhe7+ {[%clk 0:00:21]}  Kd6 {[%clk 0:00:41]} 40. Red7+ {[%clk 0:00:21]}  Kc5 {[%clk 0:00:41]} 41. Rbc7+ {[%clk 0:00:13]}  Kb6 {[%clk 0:00:36]} 42. dxe4 {[%clk 0:00:11]}  dxe4 {[%clk 0:00:36]} 43. Rb7+ {[%clk 0:00:11]}  Kc5 {[%clk 0:00:36]} 44. Rbc7+ {[%clk 0:00:11]}  Kb6 {[%clk 0:00:33]} 45. Rb7+ {[%clk 0:00:11]}  Kc5 {[%clk 0:00:32]} 46. Rbc7+ {[%clk 0:00:11]}  Kxb5 {[%clk 0:00:33]} 47. Rxd4 {[%clk 0:00:11]}  e3 {[%clk 0:00:33]} 48. Re7 {[%clk 0:00:09]}  e2 {[%clk 0:00:31]} 49. Rde4 {[%clk 0:00:09]}  Kc5 {[%clk 0:00:30]} 50. R7e6 {[%clk 0:00:09]}  g5 {[%clk 0:00:29]} 51. R6e5+ {[%clk 0:00:09]}  Kd6 {[%clk 0:00:29]} 52. Re6+ {[%clk 0:00:09]}  Kd7 {[%clk 0:00:29]} 53. Re7+ {[%clk 0:00:10]}  Kd8 {[%clk 0:00:30]} 54. Re8+ {[%clk 0:00:10]}  Kd7 {[%clk 0:00:30]} 55. R8e7+ {[%clk 0:00:11]}  Kd6 {[%clk 0:00:31]} 56. R7e6+ {[%clk 0:00:12]}  Kd7 {[%clk 0:00:32]} 57. Re8 {[%clk 0:00:12]}  Kd6 {[%clk 0:00:33]} 58. R8e6+ {[%clk 0:00:12]} 1/2-1/2


[Site "https://www.chess.com"]